Cogmind - Beta 15 @@@ ROGUE MODE // 2025.06.30 @ 01:20:22 Player: Bec Result: Destroyed by D-53 Grenadier with Mini Grenade Launcher Performance ------------- Evolutions (1) 500 Regions Visited (4) 800 Robots Destroyed (70) 350 Value Destroyed (1213) 1213 Prototype IDs (0) 0 Alien Tech Used (0) 0 Bonus (0) 0 TOTAL SCORE: 2863 Bonus ------- None Cogmind --------- Core Integrity 0/400 Matter 168/300 Energy 12/100 System Corruption 0% Temperature Cool (0) Movement Rolling (215) Ox9 Location -9/Mines Parts ------- > --- POWER (1) -------- (None) > --- PROPULSION (2) --- Wheel > --- UTILITY (4) ------ Huge Storage Unit Targeting Computer Improved Light Armor Plating Shield Generator > --- WEAPON (2) ------- Flak Cannon > --- INVENTORY (25) --- Light Ion Engine Wheel Wheel Large Storage Unit Large Storage Unit Huge Storage Unit Improved Light Armor Plating Improved Light Armor Plating Improved Light Armor Plating Improved Light Armor Plating Improved Light Armor Plating Improved Light Armor Plating Autogun Autogun Autogun Autogun Flak Cannon Flak Cannon Peak State ------------ > --- POWER ------------ Light Ion Engine > --- PROPULSION ------- Wheel Compact Wheel > --- UTILITY ---------- Huge Storage Unit Targeting Computer Improved Light Armor Plating Shield Generator > --- WEAPON ----------- Flak Cannon Flak Cannon > --- INVENTORY -------- Ion Engine Light Ion Engine Light Ion Engine Light Treads Wheel Heat Sink Large Storage Unit Large Storage Unit Huge Storage Unit Improved Light Armor Plating Improved Light Armor Plating Improved Light Armor Plating Improved Light Armor Plating Improved Light Armor Plating Improved Light Armor Plating Improved Light Armor Plating Beam Rifle Heavy Assault Rifle Flak Cannon Flak Cannon [Rating: 20] Favorites ----------- Power Ion Engine Engine Ion Engine Power Core Light Nuclear Core Propulsion Wheel Treads Light Treads Leg Aluminum Leg Wheel Wheel Flight Unit Flight Unit Utility Targeting Computer Device Shield Generator Storage Huge Storage Unit Processor Targeting Computer Protection Improved Light Armor Plating Weapon Light Assault Rifle Energy Gun Medium Laser Energy Cannon Beam Cannon Ballistic Gun Light Assault Rifle Ballistic Cannon Flak Cannon Build | -11 -10 -10 -9 -9 ------- Run | Yrd Mat Min Mat Min Slots Evolved 2 | . . . 2 . Power . | . . . . . Propulsion . | . . . . . Utility 2 | . . . 2 . Weapon . | . . . . . Parts Attached 54 | 7 10 7 26 4 Power 9 | 2 2 . 3 2 Engine 8 | 2 1 . 3 2 Core 1 | . 1 . . . Reactor . | . . . . . Propulsion 19 | 3 2 7 7 . Treads 2 | . . . 2 . Leg 3 | . . 3 . . Wheel 12 | 3 2 2 5 . Hover . | . . . . . Flight 2 | . . 2 . . Utility 15 | . 4 . 9 2 Device 5 | . . . 4 1 Storage 5 | . 3 . 2 . Processor 1 | . 1 . . . Hackware . | . . . . . Protection 4 | . . . 3 1 Artifact . | . . . . . Weapon 11 | 2 2 . 7 . Energy Gun 4 | . 1 . 3 . Energy Cannon 1 | . 1 . . . Ballistic Gun 4 | 2 . . 2 . Ballistic Cannon 2 | . . . 2 . Launcher . | . . . . . Special Weapon . | . . . . . Impact Weapon . | . . . . . Slashing Weapon . | . . . . . Piercing Weapon . | . . . . . Special Melee Weapon . | . . . . . Unidentified Prototypes . | . . . . . Parts Lost 22 | . 4 1 11 6 Power 4 | . . . 2 2 Propulsion 7 | . 2 1 3 1 Utility 5 | . . . 3 2 Weapon 6 | . 2 . 3 1 Highest Loss Streak 6 | . 3 1 4 6 To Critical Strikes . | . . . . . Average Backups 10 | 2 7 7 10 20 Power 1 | . . . 1 1 Propulsion 1 | 2 2 1 2 2 Utility 4 | . 2 5 5 10 Weapon 2 | . 2 1 1 5 Tool/Special . | . . . . . Unused Backups 19 | . 1 . 1 17 Power 1 | . . . 1 . Propulsion 2 | . . . . 2 Utility 10 | . 1 . . 9 Weapon 6 | . . . . 6 Tool/Special . | . . . . . Average Slot Usage (%) 94 | . 91 99 93 99 Engine 8 | . 13 . 9 10 Core 3 | . . 14 1 . Treads 1 | . . . 4 . Leg 5 | . . 23 . . Wheel 17 | . 27 4 16 22 Device 6 | . . . 12 11 Storage 11 | . 10 14 11 11 Processor 11 | . 10 14 11 11 Protection 4 | . . . 8 11 Energy Gun 5 | . . 14 4 . Energy Cannon 3 | . . 14 1 . Ballistic Gun 7 | . 25 . 4 . Ballistic Cannon 5 | . . . 7 22 Peak Build Rating 20 | 5 9 10 20 20 Average Rating 11 | 3 6 9 12 19 On Entrance 8 | . 5 9 10 20 Naked Turns . | . . . . . Heaviest Build 102 | 7 90 90 100 102 Greatest Support 40 | 20 20 20 40 20 Greatest Overweight (x) 26 | . 4 4 26 5 Average Overweight (x) 2 | . 1 4 3 4 Largest Inventory Capacity 25 | 5 25 25 25 25 Average Capacity 22 | 5 17 25 25 25 Most Carried 25 | 5 12 11 25 21 Average Carried 10 | 2 7 7 10 20 Final Capacity 25 | 5 25 25 25 25 Final Carried 19 | 5 8 11 19 18 Class Distribution -------------------- 76% | Mutant 23% | Scavenger-Mutant Dominant Class ---------------- Mutant | -10/Materials Mutant | -10/Mines Scavenger-Mutant | -9/Materials Mutant | -9/Mines Resources | -11 -10 -10 -9 -9 ----------- Run | Yrd Mat Min Mat Min Matter Collected 1171 | 256 291 135 433 56 Remotely 36 | . . . 36 . Salvage Created 2330 | 43 624 412 1198 53 Parts 132 | 4 45 25 58 . Haulers Intercepted 2 | . 2 . . . Recyclers Shooed 7 | . 3 . 4 . Parts Field Recycled . | . . . . . Retrieved Matter . | . . . . . Parts Self-Destructed . | . . . . . Prevented . | . . . . . Kills | -11 -10 -10 -9 -9 ------- Run | Yrd Mat Min Mat Min Combat Hostiles Destroyed 32 | 1 14 4 12 1 Guns 25 | 1 14 3 7 . Cannons 7 | . . 1 5 1 Classes Destroyed 13 | 2 4 2 4 1 Worker 8 | 1 1 2 4 . Builder 3 | . . 1 2 . Tunneler 3 | . . 3 . . Hauler 2 | . 2 . . . Recycler 12 | . 2 3 6 1 Mechanic 2 | . . . 2 . Operator 2 | . . . 2 . Watcher 6 | . 3 . 3 . Swarmer 11 | . 9 2 . . Grunt 15 | 1 5 2 7 . Duelist 1 | . . . 1 . Sentry 4 | . . . 4 . Demolisher 1 | . . . . 1 Best Kill Streak 5 | 1 5 2 4 1 Combat Bots Only 3 | 1 3 2 3 1 Max Kills in Single Turn 2 | 1 1 1 2 1 Gunslinging . | . . . . . Exploded . | . . . . . Melee . | . . . . . Uniques/NPCs Destroyed . | . . . . . Combat | -11 -10 -10 -9 -9 -------- Run | Yrd Mat Min Mat Min Hostile Shots Fired 262 | 7 82 24 120 29 Missed 53 | 2 23 3 20 5 Hits 209 | 5 59 21 100 24 Melee 3 | . . . 3 . Projectile 206 | 5 59 21 97 24 AOE 21 | . . . . 21 Critical Strikes 5 | . . 1 4 . Damage Taken 2951 | 52 523 236 1360 780 Core 623 | 10 164 27 355 67 Absorbed by Shields 121 | . . . 57 64 Core Remaining (%) 57 | 96 . 19 . . Volleys Fired 278 | 9 100 27 130 12 Largest 2 | 2 2 2 2 2 Hottest 116 | 40 110 110 116 74 Shots Fired 438 | 18 173 54 171 22 Gun 345 | 18 171 27 129 . Cannon 93 | . 2 27 42 22 Launcher . | . . . . . Special . | . . . . . Kinetic 290 | 18 169 . 81 22 Thermal 148 | . 4 54 90 . Explosive . | . . . . . Electromagnetic . | . . . . . Robot Hit Streak 21 | 4 8 8 21 5 Robot Miss Streak 9 | 2 9 2 9 7 Penetration Max . | . . . . . Secondary Targets . | . . . . . Shots Hit Robots 296 | 12 105 36 134 9 Core Hits 140 | 5 40 16 68 11 Critical Kills . | . . . . . Critical Parts Destroyed 1 | . 1 . . . Critical Strikes 7 | . 1 4 2 . Burn 6 | . . 4 2 . Destroy 1 | . 1 . . . Melee Attacks . | . . . . . Impact . | . . . . . Slashing . | . . . . . Piercing . | . . . . . Sneak Attacks . | . . . . . Combat Hostiles . | . . . . . Follow-up Attacks . | . . . . . Damage Inflicted 3478 | 94 859 537 1752 236 Guns 2389 | 94 859 236 1200 . Cannons 1078 | . . 301 541 236 Explosions . | . . . . . Melee . | . . . . . Ramming 11 | . . . 11 . Kinetic 1911 | 94 833 . 748 236 Thermal 1556 | . 26 537 993 . Explosive . | . . . . . Electromagnetic . | . . . . . Impact . | . . . . . Slashing . | . . . . . Piercing . | . . . . . Highest Corruption 3 | . 3 3 . . Average Corruption 2 | . 2 3 . . Corruption Purged . | . . . . . Corruption Blocked . | . . . . . Effects 22 | . 10 12 . . Message Errors 5 | . 2 3 . . Matter Fused 6 | . 3 3 . . Heat Flow Errors 3 | . 3 . . . Energy Discharges 2 | . . 2 . . Data Loss (minor) 3 | . 1 2 . . Data Loss (major) 1 | . . 1 . . Misfires 1 | . 1 . . . Alerts 1 | . . 1 . . Overload Shots . | . . . . . Overflow Damage 1 | . . . 1 . Projectiles 1 | . . . 1 . Explosions . | . . . . . Melee . | . . . . . Knockbacks 9 | . . . 4 5 Impact . | . . . . . Kinetic 9 | . . . 4 5 Secondary . | . . . . . Self-Inflicted Damage 5 | . . . 5 . Shots . | . . . . . Rammed 2 | . . . 2 . Targets Rammed 2 | . . . 2 . Kicked . | . . . . . Crushed . | . . . . . Highest Temperature 491 | 12 251 491 268 45 Average Temperature 86 | 7 80 128 63 16 Received Heat Transfer 821 | 30 102 120 569 . Effects 5 | . . 4 1 . Shutdowns 2 | . . 2 . . Energy Bleed 2 | . . 1 1 . Damage (minor) 1 | . . 1 . . Siege Activations . | . . . . . Martial Activations . | . . . . . Shielding Activations . | . . . . . Robots Disrupted . | . . . . . Combat Hostiles . | . . . . . Robots Corrupted . | . . . . . Combat Hostiles . | . . . . . Parts Fried . | . . . . . Impact Corruptions . | . . . . . Robots Melted . | . . . . . Combat Hostiles . | . . . . . Parts Melted 7 | . . 5 2 . Heat Transferred 4294 | . 74 1628 2592 . Parts Sabotaged . | . . . . . Parts Stolen . | . . . . . Parts Stripped . | . . . . . Power Chain Reactions . | . . . . . Alert | -11 -10 -10 -9 -9 ------- Run | Yrd Mat Min Mat Min Maximum Alert Level . | . . . . . Low Security (%) 100 | 100 100 100 100 100 Level 1 . | . . . . . Level 2 . | . . . . . Level 3 . | . . . . . Level 4 . | . . . . . Level 5 . | . . . . . High Security . | . . . . . Max Security . | . . . . . Peak Influence 157 | 20 157 82 124 20 Initial 42 | . 13 42 . 12 Average 39 | 2 91 14 35 1 Influence Increases 1180 | 25 460 165 505 25 Destroy 0b10 Robot/C 640 | 20 280 80 240 20 Destroy 0b10 Robot/NC 190 | 5 40 45 95 5 Destroy Leader 176 | . 80 10 86 . Successful Hack 24 | . . . 24 . Lose Combat Pursuer 150 | . 60 30 60 . Influence Decreases 1160 | 5 372 273 473 37 Entered New Map 93 | . 7 66 . 20 Time Decay 927 | 5 325 197 383 17 Lost Part 140 | . 40 10 90 . Squads Dispatched 6 | . 3 . 3 . Investigation 2 | . 2 . . . Extermination . | . . . . . Reinforcement 4 | . 1 . 3 . Assault . | . . . . . Garrison . | . . . . . Intercept . | . . . . . Searches Triggered . | . . . . . Construction Impeded . | . . . . . Haulers Reinforced . | . . . . . Active Scanning Responses . | . . . . . Cargo Convoy Interrupts . | . . . . . Stealth | -11 -10 -10 -9 -9 --------- Run | Yrd Mat Min Mat Min Distress Signals 6 | . 2 . 4 . Communications Jammed . | . . . . . Distress Signals . | . . . . . Times Spotted 68 | 1 25 6 28 8 Peak Tracking Total 6 | 1 5 3 6 5 Tactical Retreats 7 | . 2 1 4 . Traps | -11 -10 -10 -9 -9 ------- Run | Yrd Mat Min Mat Min Traps Triggered 3 | . 3 . . . Indirectly . | . . . . . Trap Hack Attempts . | . . . . . Triggered . | . . . . . Disarmed . | . . . . . Reprogrammed . | . . . . . Reused . | . . . . . Traps Extracted . | . . . . . Installed . | . . . . . Triggered . | . . . . . Machines | -11 -10 -10 -9 -9 ---------- Run | Yrd Mat Min Mat Min Machines Disabled . | . . . . . Max in Single Turn . | . . . . . Machines Repaired . | . . . . . Machines Dismantled . | . . . . . Machines Sabotaged . | . . . . . Overloaded Fab Kills . | . . . . . Hacking | -11 -10 -10 -9 -9 --------- Run | Yrd Mat Min Mat Min Machines Accessed 6 | . 2 . 4 . Terminals 4 | . 1 . 3 . Fabricators . | . . . . . Repair Stations 1 | . . . 1 . Recycling Units 1 | . 1 . . . Scanalyzers . | . . . . . Garrison Access . | . . . . . Total Hacks 18 | . 7 . 11 . Successful 8 | . 4 . 4 . Failed 10 | . 3 . 7 . Catastrophic 1 | . . . 1 . Database Lockouts . | . . . . . Manual . | . . . . . Terminals 12 | . 3 . 9 . Fabricators . | . . . . . Repair Stations 2 | . . . 2 . Recycling Units 4 | . 4 . . . Scanalyzers . | . . . . . Garrison Access . | . . . . . Terminal Hacks 5 | . 1 . 4 . Terminal Index 1 | . . . 1 . Locate Traps 1 | . . . 1 . Investigation Status 1 | . . . 1 . Hauler Manifests 1 | . 1 . . . Zone Layout 1 | . . . 1 . Fabricator Hacks . | . . . . . Repair Station Hacks . | . . . . . Recycling Unit Hacks 3 | . 3 . . . Recycle Component 2 | . 2 . . . Process 1 | . 1 . . . Scanalyzer . | . . . . . Garrison Access Hacks . | . . . . . Unauthorized Hacks . | . . . . . Terminals . | . . . . . Fabricators . | . . . . . Repair Stations . | . . . . . Recycling Units . | . . . . . Scanalyzers . | . . . . . Garrison Access . | . . . . . Data Cores Recovered . | . . . . . Used . | . . . . . Hacking Detections 6 | . 2 . 4 . Full Trace Events 2 | . 2 . . . Feedback Events . | . . . . . Feedback Blocked . | . . . . . Robot Schematics Acquired . | . . . . . Robots Built . | . . . . . Authchips . | . . . . . Time . | . . . . . Total Robot Build Rating . | . . . . . Part Schematics Acquired . | . . . . . Parts Built . | . . . . . Authchips . | . . . . . Time . | . . . . . Total Part Build Rating . | . . . . . Parts Repaired . | . . . . . Time . | . . . . . Parts Recycled 2 | . 2 . . . Recycled Matter 60 | . 60 . . . Retrieved Matter . | . . . . . Retrieved Components . | . . . . . Parts Scanalyzed . | . . . . . Part Schematics Acquired . | . . . . . Parts Damaged . | . . . . . Bothacking | -11 -10 -10 -9 -9 ------------ Run | Yrd Mat Min Mat Min Used RIF Installer . | . . . . . Robots Hacked . | . . . . . Non-combat . | . . . . . Combat . | . . . . . Robot Hacks Applied . | . . . . . Relay Couplers Released . | . . . . . Fabnet Peak Effective % . | . . . . . Robots Rewired . | . . . . . Allies Hacked . | . . . . . Hacks Repelled . | . . . . . Allies | -11 -10 -10 -9 -9 -------- Run | Yrd Mat Min Mat Min Total Allies . | . . . . . Largest Group . | . . . . . Highest-Rated Group . | . . . . . Highest-Rated Ally . | . . . . . Total Orders . | . . . . . Ally Attacks . | . . . . . Total Damage . | . . . . . Kills . | . . . . . Allies Corrupted . | . . . . . Allies Melted . | . . . . . Intel | -11 -10 -10 -9 -9 ------- Run | Yrd Mat Min Mat Min Active Infowar (turns) . | . . . . . Robot Analysis Total . | . . . . . Derelict Logs Recovered 2 | . . 2 . . Drone Launches . | . . . . . Drone Recoveries . | . . . . . Exploration | -11 -10 -10 -9 -9 ------------- Run | Yrd Mat Min Mat Min Turns Passed 3315 | 97 765 722 1401 330 Spaces Moved 1467 | 67 453 182 570 195 Core 18 | 17 . . 1 . Treads 76 | . . . 76 . Legs 139 | . . 139 . . Wheels 1234 | 50 453 43 493 195 Hover . | . . . . . Flight . | . . . . . Fastest Speed 50 | 50 80 140 135 140 Average Speed 161 | 72 104 338 166 147 Slowest Speed 1350 | 80 140 400 1350 155 Overloaded Moves . | . . . . . Propulsion Burnouts . | . . . . . Robots Hopped . | . . . . . Potential Cave-ins . | . . . . . Cave-ins Triggered . | . . . . . Exploration Rate (%) 46 | 6 63 61 38 64 Regions Visited 4 Branch Regions 2 Pre-discovered Areas . | . . . . . Known Exits Taken . | . . . . . Unknown Exits Taken 4 | 1 1 1 1 . Scrap Searched 2 | . . 1 . 1 Spaces Dug . | . . . . . Terrain Destroyed . | . . . . . Melee . | . . . . . Projectile . | . . . . . AOE . | . . . . . Terrain Rammed . | . . . . . Walls Destroyed . | . . . . . Machines Disabled . | . . . . . Actions | -11 -10 -10 -9 -9 --------- Run | Yrd Mat Min Mat Min Total 2025 | 99 607 236 867 216 Wait 116 | 7 19 6 81 3 Move 1463 | 66 452 181 569 195 Hop . | . . . . . Pick Up 77 | 10 19 8 38 2 Fast Attach . | . . . . . Attach 43 | 5 9 6 20 3 Detach 3 | . . 2 1 . Swap 17 | 2 3 2 9 1 Drop 26 | . 5 4 17 . Fire 278 | 9 100 27 130 12 Melee . | . . . . . Ram 2 | . . . 2 . Kick . | . . . . . Crush . | . . . . . Escape Stasis . | . . . . . Rewire . | . . . . . Trap . | . . . . . Miscellaneous . | . . . . . Route ------- -11/Scrapyard -10/Materials (discovered 3 exits: *Mat / [*Min] / [*Sub]) -10/Mines -9/Materials (discovered 2 exits: [*Min x2]) -9/Mines History --------- Turn | Location | Event 2 | -11/Scrapyard | Met Revision 17 65 | -11/Scrapyard | Discovered new exit (range 8) 98 | -11/Scrapyard | Entered Materials 119 | -10/Materials | Discovered new exit (range 10) 329 | -10/Materials | Build established: Mutant 339 | -10/Materials | Discovered new exit (range 16) 419 | -10/Materials | Discovered new exit (range 10) 759 | -10/Materials | Core integrity fell below 50% 855 | -10/Materials | Lost 3 parts (2n1w) 863 | -10/Materials | Entered Mines 866 | -10/Mines | Core integrity fell below 20% 940 | -10/Mines | Learned 2 Materials zone layouts 1514 | -10/Mines | Learned Materials trap positions 1554 | -10/Mines | Discovered new exit (range 16) 1585 | -10/Mines | Entered Materials 1585 | -9/Materials | Evolved 2 slots: Utility x2 1587 | -9/Materials | Loaded intel: 8 trap records 1877 | -9/Materials | Lost 3 parts (1n1u1w) 1929 | -9/Materials | Build established: Scavenger-Mutant 2000 | -9/Materials | Discovered new exit (range 16) 2125 | -9/Materials | Lost 4 parts (1p1n1u1w) 2125 | -9/Materials | Core integrity fell below 50% 2152 | -9/Materials | Core integrity fell below 20% 2785 | -9/Materials | Build established: Mutant 2860 | -9/Materials | Discovered new exit (range 11) 2986 | -9/Materials | Entered Mines 3065 | -9/Mines | Found a Scrap Suit stashed away for nefarious purposes 3119 | -9/Mines | Found DCF Scrap (13 items) 3169 | -9/Mines | Received a Rocket Launcher from a helpful Derelict 3255 | -9/Mines | Assembled infested the area 3316 | -9/Mines | Destroyed by D-53 Grenadier with Mini Grenade Launcher Last Messages --------------- 03205_ T-07 Excavator knocked back. 03255_ ALERT: Infestation in the mines, dispatching Demolisher response squad. 03292_ C-30 ARC bursts open, deploying its payload. 03292_ D-53 Grenadier unfolds itself. 03293_ Seismic Survey Station disabled. 03297_ Ion Engine destroyed. 03300_ The unstable cave ceiling collapses. 03302_ as-53881 destroyed. 03302_ Imp. Light Armor Plating destroyed. 03305_ Shield Generator destroyed. 03305_ as-02894 destroyed. 03307_ The unstable cave ceiling collapses. 03309_ as-88835 destroyed. 03309_ Lgt. Ion Engine destroyed. 03311_ Wheel destroyed. 03312_ The unstable cave ceiling collapses. 03313_ Flak Cannon destroyed. 03313_ D-53 Grenadier knocked back. 03313_ D-53 Grenadier destroyed. Map ----- +----------------------------------------------------+ | | | | | | | | | ?????????????????????????????????????? | | ?????????????????????????????????????? | | ?????????????????????????????????????? | | ?????????????????????????????????????? | | ?????????????????????????????????????? | | ?????????????????????????????????????? | | ?????????????????????????????????????? | | ?????????????????????????????????????? | | ?????????????????#???????????????????? | | ????????????????? ???????????????????? | | ??????????????### ???????????????????? | | ?????????????? #???????????????????? | | ?????????????? #???????????????????? | | ?????????#####a ##??????????????????? | | ?????????? ##?????????????????? | | ?????????? aa #?????????????????? | | ????????### ##????????????????? | | ??????### #????????????????? | | ??????# #?????????????????? | | ???#### #?????????????????? | | ??## ##????????????????? | | ?## @ ##???????????????? | | ?# #???????????????? | | ?# #???????????????? | | ?## ###???????????????? | | ??#### # " #???? ??????????? | | ?????#### "" ### #??????????? | | ????????## %d #???????????? | | ?????????## #?????????##?? | | ??????????# % ########????????? ?? | | ??????????## ###???????????????# #?? | | ???????????# ##????????????????## #?? | | ???????????# #????????????????? #?? | | ???????##### #?????????????????# #?? | | ???????# u #?????????????????# #?? | | ???????# ### #?????????????????# #?? | | ???????# #?# ##???????????????## #?? | | ?????### #?# ##??????????????# ##? | | ?????# #?# #??????????????# ## | | ?????# ###?# #?####?????????# # | | ?????# #?## ### ##???????## # | | ?????# ## ### #####??## # | | ????## ### #### | | ????# ##?# ]# | | ????# ##?## ##### | | ????## ###?## ##???? | +----------------------------------------------------+ Best States ------------- Heat Dissipation 48 Energy Generation 14 Energy Capacity 250 Matter Stores 300 Matter Capacity 300 Sight Range 16 Terrain Scan Density 10 Armor Coverage 300 Evasion (%) 50 Targeting Accuracy 5 Recoil Reduction 2 Item Schematics ----------------- None Robot Schematics ------------------ None Fabricated ------------ Nothing Repaired ---------- Nothing Alien Tech Used ----------------- None Achievements -------------- None Challenges ------------ None Game ------ Seed XenonFieldMallet Manual? 0 Play Time 00:46:16 Cumulative 2.9 hours Start 2025.06.29 @ 18:16:09 End 2025.06.30 @ 01:20:22 Sessions 3 Manual Loads 0 Difficulty Rogue Special Mode None Game No. 3 Rogue 3 Adventurer 0 Explorer 0 Win Type - Total 0 Types 0/0/0/0/0/0/0/0/0/0 Lore% 1 Gallery% 5 Achievement% 8 Wizard Run 0 Options --------- Layout 1 ASCII 0 Keyboard 0 Movement Mouse Keybinds 0 Fullscreen 2 Font 16/SmallcapsGlow Map View 55x38 Zoom Use 0% Tactical HUD 1 Map Filters NONE Filters NONE Steam 1 RUN: d56fb9a9-1c42-432a-9735-b2f179a18516